bitfinex/quotes_SOLUSD_20240909
["timestamp","ask_amount","ask_price","bid_price","bid_amount"]
[1725898351968,0.7369852,130.41,130.27,59.60075548]
[1725898352172,7.6698,130.39,130.25,59.60075548]
[1725898352341,0.7369852,130.41,130.25,59.60075548]
[1725898352342,0.7369852,130.41,130.27,59.60075548]
[1725898352539,0.7369852,130.41,130.29,59.60075548]
[1725898352736,0.7369852,130.41,130.33,59.60075548]
[1725898353266,8.4053852,130.41,130.34,1.53392574]
[1725898353466,0.7369852,130.41,130.31,59.60075548]
[1725898353769,0.7369852,130.41,130.37,59.60075548]
[1725898354066,0.7369852,130.41,130.39,59.60075548]
[1725898354274,0.7369852,130.41,130.29,66.5522]
[1725898354558,0.7369852,130.41,130.36,59.60075548]
[1725898355569,0.7369852,130.41,130.32,59.60075548]
[1725898356073,0.7369852,130.41,130.34,59.60075548]
[1725898356577,0.7369852,130.41,130.32,59.60075548]
[1725898356783,6.5369,130.4,130.27,59.60075548]
[1725898357066,20.0,130.39,130.27,59.60075548]
[1725898357394,6.5369,130.4,130.31,59.60075548]
[1725898357743,14.2056,130.4,130.31,59.60075548]
[1725898357964,6.5369,130.4,130.31,59.60075548]
[1725898358167,7.6694,130.39,130.29,59.60075548]
[1725898358367,7.6706,130.37,130.27,59.60075548]
[1725898358570,45.0,130.38,130.25,59.60075548]
[1725898358752,20.0,130.37,130.27,59.60075548]
[1725898358944,0.12549,130.39,130.27,59.60075548]
[1725898359181,65.0,130.39,130.27,59.60075548]
[1725898359345,7.6709,130.37,130.27,59.60075548]
[1725898359546,7.6709,130.37,130.21,15.36130225]
[1725898359547,15.7941,130.35,130.22,59.60075548]
[1725898359764,0.12549,130.34,130.22,59.60075548]
[1725898360086,7.6732,130.33,130.22,59.60075548]
[1725898360372,7.6732,130.33,130.2,59.60075548]
[1725898360373,7.674,130.31,130.2,59.60075548]
[1725898360570,7.6739,130.32,130.2,59.60075548]
[1725898360869,15.7941,130.35,130.2,59.60075548]
[1725898360870,23.4658,130.35,130.26,59.60075548]
[1725898361175,23.4657,130.35,130.26,59.60075548]
[1725898361544,15.7941,130.35,130.28,59.60075548]
[1725898361857,6.5369,130.4,130.3,59.60075548]
[1725898361858,29.5162,130.4,130.3,59.60075548]
[1725898362064,21.8474,130.4,130.3,59.60075548]
[1725898362563,21.8474,130.4,130.34,59.60075548]
[1725898362771,21.8474,130.4,130.35,1.53374454]
[1725898362951,21.8474,130.4,130.3,59.60075548]
[1725898363450,7.6693,130.39,130.3,59.60075548]
[1725898363650,7.6695,130.39,130.3,59.60075548]
[1725898363854,21.8474,130.4,130.28,59.60075548]
[1725898364167,20.0,130.39,130.26,59.60075548]
[1725898364377,7.6704,130.38,130.26,59.60075548]
[1725898364561,20.0,130.39,130.28,59.60075548]
[1725898364748,21.8474,130.4,130.3,59.60075548]
[1725898365071,0.7369852,130.41,130.36,59.60075548]
[1725898365290,0.7369852,130.41,130.37,1.53338873]
[1725898365782,0.7369852,130.41,130.38,59.60075548]
[1725898366071,0.7369852,130.41,130.39,1.53322078]
[1725898366261,0.7369852,130.41,130.4,1.53320532]
[1725898366466,0.7369852,130.41,130.38,59.60075548]
[1725898366667,0.7369852,130.41,130.36,59.60075548]
[1725898367048,0.7369852,130.41,130.34,59.60075548]
[1725898368371,0.7369852,130.41,130.35,1.53348131]
[1725898368573,0.7369852,130.41,130.34,59.60075548]
[1725898369159,0.7369852,130.41,130.32,59.60075548]
[1725898369363,0.7369852,130.41,130.36,59.60075548]
[1725898369670,0.7369852,130.41,130.37,1.53322327]
[1725898369877,0.7369852,130.41,130.36,59.60075548]
[1725898370280,0.7369852,130.41,130.38,59.60075548]
[1725898370582,0.7369852,130.41,130.39,1.53310032]
[1725898370782,0.7369852,130.41,130.38,59.60075548]
[1725898370984,0.7369852,130.41,130.39,1.65856685]
[1725898371167,0.7369852,130.41,130.38,59.60075548]
[1725898371370,0.7369852,130.41,130.4,59.60075548]
[1725898371569,0.7369852,130.41,130.4,69.01296991]
[1725898371882,0.7369852,130.41,130.37,22.063]
[1725898371883,0.7369852,130.41,130.38,59.60075548]
[1725898372085,0.7369852,130.41,130.37,22.063]
[1725898372086,0.7369852,130.41,130.37,65.98285548]
[1725898372310,0.7369852,130.41,130.39,59.60075548]
[1725898372585,0.7369852,130.41,130.39,61.13350797]
[1725898372879,0.7369852,130.41,130.4,0.12549]
[1725898373461,1.33558296,130.5,130.41,0.12549]
[1725898373666,0.8655701,130.51,130.44,0.12549]
[1725898373996,0.8655701,130.51,130.45,59.60075548]
[1725898374164,0.8655701,130.51,130.46,1.53219989]
[1725898374364,0.8655701,130.51,130.47,1.53223148]
[1725898374669,0.8655701,130.51,130.45,59.60075548]
[1725898374670,0.8655701,130.51,130.49,59.60075548]
[1725898374871,2.19989025,130.64,130.51,15.85809]
[1725898375083,10.0,130.62,130.45,6.4146]
[1725898375390,21.9337,130.59,130.47,71.1940269]
[1725898375889,7.7599,130.55,130.43,71.1940269]
[1725898376080,7.7599,130.55,130.44,20.0]
[1725898376081,0.1,130.55,130.44,20.0]
[1725898376280,0.1,130.55,130.45,72.72600275]
[1725898376780,0.1,130.55,130.45,71.1940269]
[1725898377288,7.7599,130.55,130.45,71.1940269]
[1725898377465,0.1,130.55,130.45,71.1940269]
[1725898377667,7.6605,130.54,130.45,71.1940269]
[1725898377870,0.1,130.55,130.47,71.1940269]
[1725898378572,0.1,130.55,130.48,0.12549]
[1725898379177,0.1,130.55,130.47,71.1940269]
[1725898379389,7.6611,130.53,130.43,71.1940269]
[1725898379589,0.1,130.55,130.43,71.1940269]
[1725898379888,7.6605,130.54,130.43,71.1940269]
[1725898380095,7.6616,130.52,130.43,71.1940269]
[1725898380387,7.6647,130.47,130.39,71.1940269]
[1725898380567,15.7389,130.5,130.37,78.82699915]
[1725898380773,15.7389,130.5,130.41,71.1940269]
[1725898381286,0.1,130.55,130.41,71.1940269]
[1725898381287,15.1094,130.55,130.49,71.1940269]
[1725898381491,0.1,130.55,130.51,71.1940269]
[1725898381709,0.1,130.55,130.53,71.1940269]
[1725898381868,0.1,130.55,130.54,1.5307311]
[1725898382068,0.1,130.55,130.53,71.1940269]
[1725898382371,0.8655701,130.64,130.55,6.32859]
[1725898382599,0.8655701,130.64,130.58,71.1940269]
[1725898383197,8.5202701,130.64,130.56,0.12549]
[1725898383380,8.5202701,130.64,130.54,116.1940269]
[1725898383381,0.8655701,130.64,130.55,0.12549]
[1725898383566,0.8655701,130.64,130.57,0.12549]
[1725898383771,0.8655701,130.64,130.58,71.1940269]
[1725898384089,0.8655701,130.64,130.6,71.1940269]
[1725898384470,0.8655701,130.64,130.63,0.12549]
[1725898384672,0.8655701,130.77,130.63,46.65530208]
[1725898384998,0.8655701,130.77,130.67,71.1940269]
[1725898385386,0.8655701,130.77,130.76,0.12549]
[1725898385387,0.7401701,130.77,130.76,0.12549]
[1725898385586,0.7401701,130.77,130.65,6.1598]
[1725898385804,0.7401701,130.77,130.66,1.52928413]
[1725898386509,0.7401701,130.77,130.71,71.1940269]
[1725898386694,0.7401701,130.77,130.72,1.52889192]
[1725898386886,0.7401701,130.77,130.74,71.1940269]
[1725898387100,0.7401701,130.77,130.76,71.1940269]
[1725898387309,22.4768,130.87,130.74,50.0]
[1725898387310,6.2922,130.87,130.74,50.0]
[1725898387508,23.7182,130.93,130.79,0.12549]
[1725898387694,8.5045701,130.91,130.79,0.12549]
[1725898387888,8.5045701,130.91,130.76,71.1940269]
[1725898387889,0.8655701,130.91,130.83,0.12549]
[1725898388087,0.8655701,130.91,130.82,71.1940269]
[1725898388600,0.8655701,130.91,130.8,50.0]
[1725898388795,0.447,130.93,130.8,50.0]
[1725898388796,0.447,130.93,130.82,71.1940269]
[1725898388998,0.245156,130.91,130.82,71.1940269]
[1725898389194,0.245156,130.91,130.79,72.72162791]
[1725898389513,0.245156,130.91,130.8,46.52785425]
[1725898389684,0.245156,130.91,130.8,46.52783005]
[1725898390083,0.245156,130.91,130.8,1.52783005]
[1725898390301,16.5745,130.89,130.77,1.52797726]
[1725898390805,6.5432,130.9,130.78,72.72200298]
[1725898391187,6.5432,130.9,130.78,71.1940269]
[1725898391381,6.5432,130.9,130.76,121.1940269]
[1725898391602,0.245156,130.91,130.79,121.1940269]
[1725898391807,0.245156,130.91,130.82,71.1940269]
[1725898392009,0.245156,130.91,130.83,46.52731503]
[1725898392221,0.245156,130.91,130.85,71.1940269]
[1725898392388,0.245156,130.91,130.86,46.52709093]
[1725898392582,0.245156,130.91,130.85,71.1940269]
[1725898392583,0.245156,130.91,130.85,72.7210505]
[1725898392891,7.6397,130.9,130.81,1.52733363]
[1725898393094,7.6401,130.89,130.79,1.52782842]
[1725898393304,0.245156,130.91,130.8,1.52798074]
[1725898393917,7.6412,130.87,130.77,1.52785747]
[1725898394118,0.12549,130.89,130.76,71.1940269]
[1725898394413,0.245156,130.91,130.83,71.1940269]
[1725898394593,7.884056,130.91,130.83,71.1940269]
[1725898394801,0.245156,130.91,130.84,1.52759093]
[1725898395210,0.245156,130.91,130.83,71.1940269]
[1725898395595,0.245156,130.91,130.82,50.0]
[1725898395596,0.245156,130.91,130.86,71.1940269]
[1725898395802,0.245156,130.91,130.89,71.1940269]
[1725898396117,0.245156,130.91,130.9,1.52668866]
[1725898396300,0.245156,130.91,130.9,9.16620509]
[1725898396493,0.447,130.93,130.92,78.8322269]
[1725898396693,0.447,130.93,130.91,7.6387]
[1725898396899,0.447,130.93,130.88,3.06203]
[1725898397108,0.447,130.93,130.87,7.6408]
[1725898397307,0.447,130.93,130.86,7.6373]
[1725898397308,7.6395,130.9,130.86,7.6373]
[1725898397615,7.6395,130.9,130.77,121.1940269]
[1725898397616,7.6418,130.86,130.81,7.6442]
[1725898397819,19.5417,130.93,130.77,7.6464]
[1725898397820,0.12549,130.89,130.77,7.6464]
[1725898398011,19.1032,130.87,130.77,7.6469]
[1725898398515,0.12549,130.86,130.74,71.1940269]
[1725898398728,7.6441,130.82,130.76,7.6475]
[1725898399019,21.5709,130.88,130.82,7.6437]
[1725898399221,21.5709,130.88,130.79,71.1940269]
[1725898399222,7.6413,130.87,130.81,19.1102]
[1725898399403,21.5709,130.88,130.81,19.1102]
[1725898399718,21.5709,130.88,130.79,71.1940269]
[1725898399900,7.6419,130.86,130.77,71.1940269]
[1725898400102,21.5709,130.88,130.8,19.112]
[1725898400296,21.5709,130.88,130.74,71.1940269]
[1725898400495,20.0,130.87,130.74,71.1940269]
[1725898400722,20.0,130.87,130.72,71.1940269]
[1725898401018,20.0,130.87,130.69,71.1940269]
[1725898401019,10.0,130.86,130.69,1.52886376]
[1725898401315,20.0,130.87,130.76,7.6474]
[1725898401316,19.1062,130.85,130.76,7.6474]
[1725898401521,7.6441,130.82,130.76,7.647]
[1725898401817,7.6452,130.8,130.74,26.7697]
[1725898402003,0.12549,130.83,130.72,7.6494]
[1725898402206,45.12549,130.83,130.72,7.6494]
[1725898402528,20.0,130.82,130.7,19.127]
[1725898402723,22.6759,130.79,130.7,19.127]
[1725898403015,22.6759,130.79,130.58,21.8167]
[1725898403016,7.6482,130.75,130.69,7.6516]
[1725898403217,20.0,130.78,130.73,7.6492]
[1725898403395,30.3222,130.79,130.74,1.52932076]
[1725898403720,30.3217,130.79,130.73,7.6488]
[1725898403904,30.3217,130.79,130.72,7.6493]
[1725898403905,22.6759,130.79,130.72,7.6493]
[1725898404101,22.6759,130.79,130.69,71.1940269]
[1725898404622,7.6464,130.78,130.72,19.124]
[1725898404824,22.6759,130.79,130.72,19.124]
[1725898404996,7.6465,130.78,130.72,19.124]
[1725898405204,22.6759,130.79,130.72,19.124]
[1725898405513,22.6759,130.79,130.73,1.52925625]
[1725898405820,22.6759,130.79,130.75,7.6481]
[1725898405999,22.6759,130.79,130.75,7.6479]
[1725898406198,22.6759,130.79,130.74,19.1216]
[1725898406395,7.6468,130.78,130.68,71.1940269]
[1725898406595,22.6759,130.79,130.68,72.72337379]
[1725898406795,7.6482,130.75,130.69,7.6516]
[1725898407230,22.6759,130.79,130.67,15.3323]
[1725898407231,7.6493,130.74,130.67,15.3323]
[1725898407404,22.6759,130.79,130.67,15.3323]
[1725898407405,7.6496,130.73,130.67,15.3323]
[1725898407610,22.6759,130.79,130.67,15.3323]
[1725898407611,0.12549,130.78,130.68,9.18159582]
[1725898407915,7.6488,130.74,130.67,7.68]
[1725898408112,45.12549,130.78,130.68,1.52992117]
[1725898408324,7.6483,130.75,130.7,7.6508]
[1725898408531,7.6488,130.74,130.69,7.6516]
[1725898408702,0.12549,130.78,130.69,7.6516]
[1725898409021,0.12549,130.78,130.65,7.68]
[1725898409022,0.12549,130.76,130.65,7.68]
[1725898409228,45.12549,130.76,130.67,7.68]
[1725898409425,20.0,130.75,130.68,1.53018481]
[1725898409639,7.6465,130.78,130.72,7.6496]
[1725898409926,7.647,130.77,130.73,1.52948269]
[1725898410224,7.6483,130.75,130.72,1.52950163]
[1725898410423,7.6493,130.73,130.67,15.3325]
[1725898410634,7.6513,130.7,130.67,7.68]
[1725898410844,0.12549,130.74,130.67,7.68]
[1725898411056,19.25089,130.72,130.67,7.68]
[1725898411212,0.12549,130.7,130.61,7.68]
[1725898411411,7.6506,130.71,130.65,15.3338]
[1725898411638,7.6511,130.7,130.66,1.5303165]
[1725898411951,7.6518,130.69,130.65,7.68]
[1725898412533,7.6511,130.7,130.65,7.68]
[1725898412713,0.12549,130.72,130.66,1.53047781]
[1725898413041,23.0016,130.73,130.67,7.68]
[1725898413436,30.6509,130.73,130.67,15.3327]
[1725898413615,30.6509,130.73,130.67,7.6527]
[1725898413839,7.65,130.72,130.66,19.1335]
[1725898414134,7.65,130.72,130.66,26.7864]
[1725898414641,7.77589,130.72,130.65,7.6538]
[1725898414839,7.77589,130.72,130.63,19.1379]
[1725898414840,0.12549,130.72,130.63,26.7926]
[1725898415024,7.6523,130.68,130.63,19.1379]
[1725898415335,65.12549,130.72,130.57,1.53069536]
[1725898415519,20.0,130.72,130.6,71.1940269]
[1725898415718,23.0016,130.73,130.6,72.72427674]
[1725898415930,23.0016,130.73,130.6,71.1940269]
[1725898416248,23.0016,130.73,130.64,7.6541]
[1725898416535,7.6512,130.7,130.64,7.6546]
[1725898416835,7.6517,130.69,130.63,26.7917]
[1725898417031,7.6524,130.68,130.63,19.1366]
[1725898417236,7.6524,130.68,130.63,26.7915]
[1725898417430,7.6519,130.69,130.63,26.7915]
[1725898417635,0.12549,130.72,130.66,7.6532]
[1725898417829,65.12549,130.72,130.65,7.6539]
[1725898418041,7.6517,130.69,130.64,7.6546]
[1725898418216,65.12549,130.72,130.63,19.1366]
[1725898418422,65.12549,130.72,130.65,7.6535]
[1725898418423,7.6511,130.7,130.65,7.6535]
[1725898418749,7.6511,130.7,130.65,19.1337]
[1725898419046,7.6529,130.67,130.61,26.7962]
[1725898419227,7.6535,130.66,130.61,19.1403]
[1725898419418,33.32733905,130.73,130.54,71.1940269]
[1725898419619,33.32733905,130.73,130.49,50.0]
[1725898419620,7.6538,130.66,130.56,71.1940269]
[1725898419825,23.0016,130.73,130.61,7.6559]
[1725898420042,7.6525,130.68,130.62,7.6557]
[1725898420353,20.12549,130.72,130.6,19.142]
[1725898420354,0.12549,130.7,130.6,19.142]
[1725898420650,7.77919,130.66,130.61,7.6563]
[1725898420942,7.6565,130.61,130.55,7.6594]
[1725898421151,0.12549,130.64,130.55,7.6594]
[1725898421320,7.6564,130.61,130.55,7.6593]
[1725898421624,7.6569,130.61,130.55,7.6598]
[1725898421825,64.26039,130.66,130.55,7.6598]
[1725898422048,6.2229,130.61,130.43,6.2352]
[1725898422239,19.26789,130.6,130.49,19.1572]
[1725898422545,19.26789,130.6,130.45,72.2234349]
[1725898422546,35.3395,130.59,130.51,19.1544]
[1725898422928,35.3395,130.59,130.45,72.2234349]
[1725898422929,15.3395,130.59,130.54,19.1509]
[1725898423319,15.3395,130.59,130.57,19.1466]
[1725898423748,6.2229,130.61,130.57,19.1466]
[1725898423946,6.2229,130.61,130.59,7.657]
[1725898424121,15.5622,130.64,130.59,7.657]
[1725898424122,15.5622,130.64,130.61,7.6561]
[1725898424839,6.2629,130.67,130.61,1.53104909]
[1725898425037,6.2629,130.67,130.58,7.68]
[1725898425246,15.5622,130.69,130.66,7.6534]
[1725898425551,15.5622,130.69,130.59,71.1940269]
[1725898425720,15.5622,130.69,130.67,7.6528]
[1725898426051,23.2139,130.69,130.61,7.68]
[1725898426348,15.5622,130.69,130.61,78.8740269]
[1725898426653,6.2629,130.71,130.68,7.6522]
[1725898426817,6.2629,130.71,130.69,7.6512]
[1725898427017,15.5622,130.74,130.68,19.1295]
[1725898427216,6.2629,130.75,130.7,19.1264]
[1725898427441,7.6429,130.84,130.77,7.6464]
[1725898427646,7.6429,130.84,130.75,19.1201]
[1725898427647,7.6429,130.84,130.78,7.6463]
[1725898427867,1.33223948,130.87,130.79,1.52897594]
[1725898428151,40.9247,130.9,130.78,71.1940269]
[1725898428152,23.15696529,130.9,130.81,19.1113]
[1725898428323,30.79686529,130.9,130.84,7.6427]
[1725898428518,7.6387,130.92,130.85,1.52838312]
[1725898428824,7.6387,130.92,130.86,7.6417]
[1725898429042,7.6388,130.91,130.84,19.1071]
[1725898429225,11.11715016,130.91,130.8,71.1940269]
[1725898429425,11.11715016,130.9,130.78,71.1940269]
[1725898429644,11.11715016,130.9,130.82,7.644]
[1725898429940,0.447,130.93,130.82,7.644]
[1725898429941,7.6406,130.88,130.82,7.644]
[1725898430144,19.1022,130.88,130.79,1.52853028]
[1725898430346,50.0,130.87,130.69,71.1940269]
[1725898430530,6.5886,130.84,130.67,80.85378641]
[1725898430749,7.6452,130.81,130.73,7.6492]
[1725898430944,6.5886,130.84,130.73,7.6487]
[1725898430945,7.6458,130.8,130.73,7.6487]
[1725898431271,0.12549,130.83,130.72,7.6498]
[1725898431559,7.6464,130.79,130.72,7.6498]
[1725898431940,7.6476,130.76,130.7,7.6507]
[1725898432341,45.12549,130.83,130.71,72.72366013]
[1725898432563,6.5886,130.84,130.71,72.72366013]
[1725898432564,7.6446,130.82,130.75,7.6476]
[1725898432750,6.5886,130.84,130.76,1.52887352]
[1725898432751,7.6449,130.81,130.76,1.52887352]
[1725898432951,6.5886,130.84,130.74,26.7703]
[1725898433155,7.6464,130.78,130.72,7.6494]
[1725898433370,6.5886,130.84,130.73,19.1231]
[1725898433658,6.5886,130.84,130.76,7.6475]
[1725898433659,7.644,130.82,130.76,7.6475]
[1725898433973,6.5886,130.84,130.77,9.17583669]
[1725898434144,7.645,130.81,130.76,19.1187]
[1725898434496,7.6452,130.8,130.73,97.9660269]
[1725898434760,7.6452,130.8,130.74,7.6487]
[1725898434761,7.6453,130.8,130.74,7.6487]
[1725898434945,25.6966,130.84,130.73,19.1233]
[1725898435141,19.1118,130.81,130.69,90.3221269]
[1725898435347,65.12549,130.8,130.69,19.1281]
[1725898435543,7.6488,130.74,130.69,26.7797]
[1725898435767,65.12549,130.8,130.71,7.6501]
[1725898436081,65.12549,130.8,130.7,7.6509]
[1725898436247,65.12549,130.8,130.69,19.1281]
[1725898436448,7.6476,130.76,130.71,7.6504]
[1725898436858,7.6476,130.76,130.69,19.1281]
[1725898436859,7.6481,130.76,130.69,26.7797]
[1725898437149,7.6488,130.74,130.69,26.7797]
[1725898437346,7.6493,130.73,130.67,7.6526]
[1725898437864,0.12549,130.76,130.66,7.6534]
[1725898438057,0.12549,130.76,130.65,19.1336]
[1725898438058,19.1218,130.75,130.65,19.1336]
[1725898438269,36.20249,130.74,130.65,19.1336]
[1725898438473,7.6523,130.68,130.63,7.6551]
[1725898438658,0.12549,130.72,130.64,7.6543]
[1725898438659,7.6517,130.69,130.64,7.6543]
[1725898439373,0.12549,130.72,130.65,7.6538]
[1725898439374,7.6511,130.7,130.65,7.6538]
[1725898439587,7.6505,130.71,130.65,9.18433716]
[1725898439870,7.6505,130.71,130.66,7.6533]
[1725898440076,7.6503,130.72,130.67,1.5303608]
[1725898440283,7.6503,130.72,130.67,7.6527]
[1725898440570,36.077,130.74,130.64,71.1940269]
[1725898440571,16.077,130.74,130.64,71.1940269]
[1725898440774,7.6488,130.74,130.68,19.1294]
[1725898440951,7.6492,130.74,130.69,1.52998608]
[1725898441448,19.1158,130.79,130.69,1.52998608]
[1725898441650,16.509,130.81,130.7,19.1264]
[1725898441851,6.5886,130.84,130.72,71.1940269]
[1725898442071,7.6418,130.86,130.8,7.6451]
[1725898442377,16.1209,130.88,130.78,19.1147]
[1725898442560,7.6434,130.84,130.79,7.6458]
[1725898442879,7.6418,130.86,130.81,7.6446]
[1725898443051,6.093,130.9,130.81,1.52863249]
[1725898443245,7.6418,130.86,130.81,7.6446]
[1725898443479,6.093,130.9,130.8,19.1121]
[1725898443480,7.6423,130.85,130.8,26.7572]
[1725898443776,7.6418,130.86,130.81,9.17273214]
[1725898443952,7.6411,130.88,130.82,7.6439]
[1725898444154,6.093,130.9,130.8,19.1121]
[1725898444586,6.093,130.9,130.82,19.1089]
[1725898444748,7.6395,130.9,130.85,7.6422]
[1725898444953,7.6395,130.9,130.85,7.6423]
[1725898445258,7.6401,130.89,130.8,71.1940269]
[1725898445458,7.6393,130.91,130.86,7.6412]
[1725898445676,1.33144067,130.94,130.8,71.1940269]
[1725898445677,7.6394,130.9,130.8,71.1940269]
[1725898446105,7.6394,130.9,130.85,7.6422]
[1725898446403,19.1025,130.88,130.71,71.1940269]
[1725898446602,7.6442,130.82,130.77,7.6468]
[1725898446778,10.49965016,130.87,130.71,71.1940269]
[1725898447101,7.6447,130.81,130.76,7.6475]
[1725898447474,7.6441,130.82,130.77,7.647]
[1725898447679,1.33249928,130.84,130.7,1.52904978]
[1725898447897,66.222,130.95,130.76,71.1940269]
[1725898448101,1.33183591,130.9,130.81,19.1106]
[1725898448402,50.0,130.91,130.74,71.1940269]
[1725898448585,39.5328722,130.89,130.74,71.1940269]
[1725898448792,1.3322722,130.89,130.74,71.1940269]
[1725898449115,7.6422,130.86,130.81,7.6446]
[1725898449289,0.12549,130.88,130.69,71.1940269]
[1725898449500,0.12549,130.88,130.67,6.2751]
[1725898449501,0.12549,130.88,130.7,71.1940269]
[1725898449502,7.6452,130.8,130.7,71.1940269]
[1725898450004,7.6452,130.8,130.67,7.80417665]
[1725898450005,7.6458,130.79,130.68,71.1940269]
[1725898450211,7.6458,130.79,130.74,7.6482]
[1725898450730,7.6458,130.79,130.75,7.6481]
[1725898450900,7.6458,130.79,130.74,7.6487]
[1725898451094,0.12549,130.84,130.75,1.52933485]
[1725898451300,6.2788,130.87,130.81,7.6446]
[1725898451301,7.6426,130.85,130.81,7.6446]
[1725898451601,7.6426,130.85,130.79,19.1137]
[1725898451602,7.643,130.84,130.8,7.6451]
[1725898451800,6.2788,130.87,130.79,26.7594]
[1725898451997,6.2788,130.87,130.8,7.6451]
[1725898452204,6.2788,130.87,130.79,19.1137]
[1725898452205,6.2788,130.87,130.81,1.52872828]
[1725898452405,7.6417,130.87,130.81,19.1105]
[1725898452698,7.6412,130.87,130.82,7.6438]
[1725898453726,7.6418,130.86,130.81,26.7551]
[1725898453920,7.6423,130.85,130.81,26.7551]
[1725898454225,1.3322722,130.89,130.81,19.1105]
[1725898454520,7.6418,130.86,130.82,7.644]
[1725898454726,7.6423,130.85,130.8,7.6452]
[1725898455107,20.4333722,130.89,130.74,71.1940269]
[1725898455319,45.0,130.88,130.74,71.1940269]
[1725898455524,20.0,130.87,130.74,71.1940269]
[1725898455838,7.6425,130.85,130.74,71.1940269]
[1725898456006,20.0,130.87,130.74,71.1940269]
[1725898456007,20.0,130.87,130.76,71.1940269]
[1725898456327,7.6407,130.88,130.84,7.6428]
[1725898456518,0.6436608,130.91,130.86,7.6416]
[1725898456717,0.6436608,130.91,130.76,70.84048216]
[1725898457124,30.24101096,130.91,130.76,70.84048216]
[1725898457302,7.6424,130.85,130.74,70.84048216]
[1725898457907,1.33199549,130.9,130.76,70.84048216]
[1725898458108,20.0,130.9,130.82,7.6439]
[1725898458324,0.6436608,130.91,130.8,70.84048216]
[1725898458527,0.6436608,130.91,130.84,7.6425]
[1725898458528,7.6401,130.89,130.84,7.6425]
[1725898458703,0.6436608,130.91,130.85,7.6422]
[1725898458704,7.6395,130.9,130.85,7.6422]
[1725898458907,7.6406,130.88,130.84,7.6428]
[1725898459106,0.6436608,130.91,130.76,70.84048216]
[1725898459327,0.6436608,130.91,130.74,70.84048216]
[1725898459328,6.6305,130.9,130.74,70.84048216]
[1725898459535,7.6424,130.85,130.74,70.84048216]
[1725898459739,7.6432,130.84,130.74,70.84048216]
[1725898459914,52.6436,130.83,130.78,7.6464]
[1725898460243,0.12549,130.85,130.72,84.55758216]
[1725898460425,7.6442,130.82,130.72,6.0371]
[1725898460642,7.6447,130.81,130.76,7.6473]
[1725898460810,7.6441,130.82,130.77,7.6469]
[1725898461011,7.6435,130.83,130.78,7.6463]
[1725898461215,45.12549,130.85,130.67,16.91057911]
[1725898461216,52.76789,130.85,130.8,7.6448]
[1725898461623,6.6305,130.9,130.8,19.112]
[1725898461829,7.6416,130.87,130.83,7.6434]
[1725898462028,6.6305,130.9,130.84,7.6427]
[1725898462029,7.6406,130.88,130.84,7.6427]
[1725898462230,6.6305,130.9,130.84,7.6427]
[1725898462416,6.6305,130.9,130.85,7.6423]
[1725898462936,14.2703,130.9,130.85,7.6423]
[1725898463111,14.2703,130.9,130.84,26.7492]
[1725898463112,7.6404,130.89,130.84,26.7492]
[1725898463312,7.6404,130.89,130.85,7.6422]
[1725898463513,7.6404,130.89,130.84,26.7491]
[1725898463735,14.27,130.9,130.84,19.1064]
[1725898464036,14.2703,130.9,130.85,7.6422]
[1725898464630,0.6436608,130.91,130.79,70.84048216]
[1725898464827,0.6436608,130.91,130.89,7.6398]
[1725898465033,0.6436608,130.91,130.87,7.641]
[1725898465228,0.6436608,130.91,130.81,70.84048216]
[1725898465750,0.6436608,130.91,130.88,7.6402]
[1725898465949,0.6436608,130.91,130.9,7.6394]
[1725898466434,0.6436608,130.91,130.83,70.8095545]
[1725898466633,0.6436608,130.91,130.81,70.8095545]
[1725898466836,0.6436608,130.91,130.81,78.4895545]
[1725898467623,0.6436608,130.91,130.88,7.6405]
[1725898468450,0.6436608,130.91,130.83,70.8095545]
[1725898468637,0.6436608,130.91,130.77,22.3088]
[1725898468638,0.6436608,130.91,130.9,7.6394]